fUSD/lending_fUSD_20250306
["ID","MTS","AMOUNT","RATE_DAILY","PERIOD"]
[355513122,1741219290715,150.0,0.0001647,120]
[355513123,1741219397809,439.42,0.00010245,2]
[355513124,1741219501290,2211.35782318,0.000201,120]
[355513125,1741219531670,150.0,0.00019836,120]
[355513126,1741219551151,313.0,8.478e-05,2]
[355513127,1741219590764,150.0,0.00019611,120]
[355513129,1741219710752,150.0,0.00019888,120]
[355513130,1741219720328,3000.0,0.000201,120]
[355513133,1741219770750,150.0,0.00019964,120]
[355513143,1741219831687,-621.58,0.00010245,2]
[355513144,1741219831697,-1061.0,0.00010264,2]
[355513145,1741219831707,-150.0,0.0001043,7]
[355513146,1741219831716,-892.92,0.00010505,2]
[355513147,1741219831741,-107.08,0.00010505,2]
[355513148,1741219831750,-250.0,0.00010505,2]
[355513149,1741219831760,-313.0,0.00010742,2]
[355513150,1741219831773,-152.97,0.00010759,2]
[355513151,1741219831783,-72.89556478,0.00010805,2]
[355513152,1741219831794,-988.10443522,0.00010805,2]
[355513153,1741219831804,-152.97,0.00010882,2]
[355513154,1741219831813,-550.0,0.00011,2]
[355513155,1741219831823,-63.37419872,0.00011005,2]
[355513156,1741219831844,-89.59580128,0.00011005,2]
[355513157,1741219831854,-152.97,0.00011128,2]
[355513158,1741219831863,-152.97,0.00011251,2]
[355513159,1741219831874,-1755.0336847,0.00011269,2]
[355513160,1741219831884,-426.38826033,0.000113,2]
[355513161,1741219831894,-300.0,0.00011372,2]
[355513162,1741219831904,-588.18627057,0.00011373,2]
[355513163,1741219831923,-472.81372943,0.00011373,2]
[355513164,1741219831933,-152.97,0.00011374,2]
[355513165,1741219831943,-1445.04503,0.0001139,2]
[355513166,1741219831952,-1258.5002,0.0001139,2]
[355513167,1741219831963,-565.0,0.00011397,2]
[355513168,1741219831972,-167.81598516,0.00011397,2]
[355513169,1741219831982,-153.64767833,0.00011397,2]
[355513171,1741219831991,-590.41512844,0.00011397,2]
[355513172,1741219832001,-2352.93138396,0.00011397,2]
[355513173,1741219832010,-342.21237785,0.00011397,2]
[355513174,1741219832021,-1589.681725,0.00011397,2]
[355513188,1741219837414,-421.03728111,0.00011397,2]
[355513189,1741219837427,-153.64767833,0.00011398,2]
[355513190,1741219837439,-1290.31297904,0.00011398,2]
[355513191,1741219837451,-1062.61840492,0.00011398,2]
[355513192,1741219837463,-2352.93138396,0.00011398,2]
[355513193,1741219837474,-1094.48498189,0.00011398,2]
[355513194,1741219837486,-4945.32701811,0.00011398,2]
[355513195,1741219837496,-416.5545729,0.00011398,2]
[355513196,1741219837536,-44.9849271,0.00011398,2]
[355513197,1741219837547,-435.4977499,0.00011398,2]
[355513198,1741219837650,-299.25,0.00011398,2]
[355513200,1741219839734,-265.2522501,0.00011398,2]
[355513201,1741219839744,-153.64767833,0.00011398,2]
[355513202,1741219839753,-962.79879369,0.00011398,2]
[355513203,1741219839909,-1390.13259027,0.00011398,2]
[355513204,1741219839919,-2352.93138396,0.00011399,2]
[355513205,1741219839928,-153.64767833,0.00011399,2]
[355513206,1741219839937,-150.0,0.00011399,2]
[355513207,1741219839946,-2352.93138396,0.00011399,2]
[355513208,1741219839956,-2352.93138396,0.00011399,2]
[355513209,1741219839965,-153.64767833,0.00011399,2]
[355513210,1741219839975,-2352.93138396,0.000114,2]
[355513211,1741219839984,-7652.006386,0.000114,2]
[355513212,1741219839994,-153.64767833,0.000114,2]
[355513213,1741219840003,-2616.863143,0.000114,2]
[355513214,1741219840012,-2352.93138396,0.000114,2]
[355513215,1741219840024,-518.440185,0.00011489,2]
[355513217,1741219840033,-683.4,0.00011489,2]
[355513218,1741219840042,-3656.33,0.00011489,2]
[355513219,1741219840051,-942.61,0.00011489,2]
[355513220,1741219840060,-1092.67,0.00011489,2]
[355513221,1741219840070,-433.726065,0.00011489,2]
[355513222,1741219840080,-824.14,0.00011489,2]
[355513224,1741219840090,-500.0,0.00011489,2]
[355513225,1741219840099,-1422.33,0.00011489,2]
[355513226,1741219840108,-1876.42,0.00011489,2]
[355513227,1741219840118,-661.74,0.00011489,2]
[355513228,1741219840127,-500.0,0.00011489,2]
[355513229,1741219840136,-1073.06,0.00011489,2]
[355513230,1741219840147,-622.36,0.00011489,2]
[355513231,1741219840156,-879.87,0.00011489,2]
[355513232,1741219840166,-500.0,0.00011489,2]
[355513233,1741219840175,-500.0,0.00011489,2]
[355513234,1741219840185,-749.97,0.00011489,2]
[355513235,1741219840195,-500.0,0.00011489,2]
[355513236,1741219840204,-653.14,0.00011489,2]
[355513237,1741219840214,-500.0,0.00011489,2]
[355513238,1741219840225,-500.0,0.00011489,2]
[355513239,1741219840234,-1260.94,0.00011489,2]
[355513240,1741219840244,-824.07,0.00011489,2]
[355513241,1741219840254,-500.0,0.00011489,2]
[355513242,1741219840266,-500.0,0.00011489,2]
[355513243,1741219840276,-925.6,0.00011489,2]
[355513244,1741219840286,-629.24,0.00011489,2]
[355513245,1741219840295,-500.0,0.00011489,2]
[355513246,1741219840305,-500.0,0.00011489,2]
[355513247,1741219840315,-843.34,0.00011489,2]
[355513248,1741219840324,-1271.78,0.00011489,2]
[355513249,1741219840335,-500.0,0.00011489,2]
[355513250,1741219840345,-705.82,0.00011489,2]
[355513251,1741219840355,-580.75,0.00011489,2]
[355513252,1741219840365,-591.89,0.00011489,2]
[355513253,1741219840375,-725.65,0.00011489,2]
[355513254,1741219840384,-500.0,0.00011489,2]
[355513255,1741219840394,-688.93,0.00011489,2]
[355513256,1741219840404,-698.07,0.00011489,2]
[355513257,1741219840413,-500.0,0.00011489,2]
[355513258,1741219840423,-568.55,0.00011489,2]
[355513259,1741219840438,-3664.31,0.00011489,2]
[355513260,1741219840448,-251.84,0.00011489,2]
[355513261,1741219840457,-592.24,0.00011489,2]
[355513262,1741219840469,-500.0,0.00011489,2]
[355513263,1741219840479,-1123.21,0.00011489,2]
[355513264,1741219840488,-619.56,0.00011489,2]
[355513265,1741219840498,-500.0,0.00011489,2]
[355513266,1741219840510,-544.65,0.00011489,2]
[355513267,1741219840524,-1145.92,0.00011489,2]
[355513268,1741219840534,-500.0,0.00011489,2]
[355513269,1741219840545,-500.0,0.00011489,2]
[355513270,1741219840554,-500.0,0.00011489,2]
[355513271,1741219840566,-2507.9,0.00011489,2]
[355513272,1741219840578,-500.0,0.00011489,2]
[355513273,1741219840588,-500.0,0.00011489,2]
[355513274,1741219840598,-500.0,0.00011489,2]
[355513275,1741219840608,-500.0,0.00011489,2]
[355513276,1741219840619,-335536.32728874,0.0001149,2]
[355513277,1741219840628,-152.97,0.00011497,2]
[355513278,1741219840638,-453.98,0.00011497,2]
[355513279,1741219840648,-500.0,0.00011497,2]
[355513280,1741219840657,-500.0,0.00011497,2]
[355513281,1741219840667,-189.50882967,0.00011497,2]
[355513282,1741219840677,-500.0,0.00011497,2]
[355513283,1741219840686,-244.47,0.00011497,2]
[355513284,1741219840695,-500.0,0.00011497,2]
[355513285,1741219840704,-342.26,0.00011497,2]
[355513286,1741219840715,-267.82,0.00011497,2]
[355513287,1741219840726,-500.0,0.00011497,2]
[355513288,1741219840735,-276.79,0.00011497,2]
[355513289,1741219840744,-500.0,0.00011497,2]
[355513290,1741219840755,-250.54,0.00011497,2]
[355513291,1741219840765,-262.88,0.00011497,2]
[355513292,1741219840775,-500.0,0.00011497,2]
[355513293,1741219840784,-500.0,0.00011497,2]
[355513294,1741219840794,-500.0,0.00011497,2]
[355513295,1741219840803,-224.22,0.00011497,2]
[355513296,1741219840812,-500.0,0.00011497,2]
[355513297,1741219840821,-500.0,0.00011497,2]
[355513298,1741219840830,-500.0,0.00011497,2]
[355513299,1741219840839,-500.0,0.00011497,2]
[355513300,1741219840848,-500.0,0.00011497,2]
[355513301,1741219840857,-177.63,0.00011497,2]
[355513302,1741219840866,-676.335,0.00011497,2]
[355513303,1741219840876,-500.0,0.00011497,2]
[355513304,1741219840885,-500.0,0.00011497,2]
[355513305,1741219840894,-500.0,0.00011497,2]
[355513306,1741219840904,-500.0,0.00011497,2]
[355513307,1741219840913,-500.0,0.00011497,2]
[355513308,1741219840922,-582.31,0.00011497,2]
[355513309,1741219840932,-500.0,0.00011497,2]
[355513310,1741219840942,-500.0,0.00011497,2]
[355513311,1741219840952,-500.0,0.00011497,2]
[355513312,1741219840961,-500.0,0.00011497,2]
[355513313,1741219840971,-500.0,0.00011497,2]
[355513314,1741219840980,-500.0,0.00011497,2]
[355513315,1741219840989,-500.0,0.00011497,2]
[355513316,1741219840999,-500.0,0.00011497,2]
[355513317,1741219841008,-500.0,0.00011497,2]
[355513318,1741219841017,-500.0,0.00011497,2]
[355513319,1741219841027,-500.0,0.00011497,2]
[355513320,1741219841035,-500.0,0.00011497,2]
[355513321,1741219841045,-500.0,0.00011497,2]
[355513322,1741219841054,-245.82,0.00011497,2]
[355513323,1741219841064,-500.0,0.00011497,2]
[355513324,1741219841073,-4947.50296953,0.00011497,2]
[355513325,1741219841083,-500.0,0.00011497,2]
[355513326,1741219841092,-500.0,0.00011497,2]
[355513327,1741219841102,-500.0,0.00011497,2]
[355513328,1741219841112,-500.0,0.00011497,2]
[355513329,1741219841122,-334.03,0.00011497,2]
[355513330,1741219841131,-500.0,0.00011497,2]
[355513331,1741219841140,-500.0,0.00011497,2]
[355513332,1741219841150,-399.18,0.00011497,2]
[355513333,1741219841159,-500.0,0.00011497,2]
[355513334,1741219841168,-500.0,0.00011497,2]
[355513335,1741219841178,-568.85,0.00011497,2]
[355513336,1741219841187,-500.0,0.00011497,2]
[355513337,1741219841197,-500.0,0.00011497,2]
[355513338,1741219841207,-500.0,0.00011497,2]
[355513339,1741219841220,-500.0,0.00011497,2]
[355513340,1741219841230,-500.0,0.00011497,2]
[355513341,1741219841239,-500.0,0.00011497,2]
[355513342,1741219841249,-500.0,0.00011497,2]
[355513343,1741219841260,-500.0,0.00011497,2]
[355513344,1741219841269,-500.0,0.00011497,2]
[355513345,1741219841279,-500.0,0.00011497,2]
[355513346,1741219841288,-500.0,0.00011497,2]
[355513347,1741219841297,-500.0,0.00011497,2]
[355513348,1741219841307,-500.0,0.00011497,2]
[355513349,1741219841317,-500.0,0.00011497,2]
[355513350,1741219841326,-500.0,0.00011497,2]
[355513351,1741219841336,-500.0,0.00011497,2]
[355513352,1741219841346,-265.78,0.00011497,2]
[355513353,1741219841355,-500.0,0.00011497,2]
[355513354,1741219841365,-500.0,0.00011497,2]
[355513355,1741219841375,-500.0,0.00011497,2]
[355513356,1741219841385,-500.0,0.00011497,2]
[355513357,1741219841395,-500.0,0.00011497,2]
[355513358,1741219841404,-500.0,0.00011497,2]
[355513359,1741219841416,-359.88749084,0.00011497,2]
[355513360,1741219841426,-500.0,0.00011497,2]
[355513361,1741219841439,-500.0,0.00011497,2]
[355513362,1741219841448,-509.08,0.00011497,2]
[355513363,1741219841459,-500.0,0.00011497,2]
[355513364,1741219841471,-788.91,0.00011497,2]
[355513365,1741219841484,-500.0,0.00011497,2]
[355513366,1741219841494,-500.0,0.00011497,2]
[355513367,1741219841506,-499.17696087,0.00011497,2]
[355513368,1741219841516,-500.0,0.00011497,2]
[355513369,1741219841526,-331.4266631,0.00011497,2]
[355513370,1741219841535,-500.0,0.00011497,2]
[355513371,1741219841545,-500.0,0.00011497,2]
[355513372,1741219841554,-500.0,0.00011497,2]
[355513373,1741219841563,-500.0,0.00011497,2]
[355513374,1741219841572,-500.0,0.00011497,2]
[355513375,1741219841581,-500.0,0.00011497,2]
[355513376,1741219841590,-500.0,0.00011497,2]
[355513377,1741219841600,-500.0,0.00011497,2]
[355513378,1741219841609,-500.0,0.00011497,2]
[355513379,1741219841619,-500.0,0.00011497,2]
[355513380,1741219841628,-500.0,0.00011497,2]
[355513381,1741219841638,-500.0,0.00011497,2]
[355513382,1741219841647,-500.0,0.00011497,2]
[355513383,1741219841657,-500.0,0.00011497,2]
[355513384,1741219841669,-500.0,0.00011497,2]
[355513385,1741219841679,-500.0,0.00011497,2]
[355513386,1741219841689,-500.0,0.00011497,2]
[355513387,1741219841699,-4155.34,0.00011497,2]
[355513388,1741219841708,-500.0,0.00011497,2]
[355513389,1741219841719,-1391.92,0.00011497,2]
[355513390,1741219841728,-500.0,0.00011497,2]
[355513391,1741219841738,-500.0,0.00011497,2]
[355513392,1741219841747,-500.0,0.00011497,2]
[355513393,1741219841756,-500.0,0.00011497,2]
[355513394,1741219841765,-500.0,0.00011497,2]
[355513395,1741219841774,-505.47,0.00011497,2]
[355513396,1741219841784,-500.0,0.00011497,2]
[355513397,1741219841793,-526.03,0.00011497,2]
[355513398,1741219841803,-500.0,0.00011497,2]
[355513399,1741219841812,-500.0,0.00011497,2]
[355513400,1741219841822,-500.0,0.00011497,2]
[355513401,1741219841831,-500.0,0.00011497,2]
[355513402,1741219841840,-500.0,0.00011497,2]
[355513403,1741219841850,-504.66752174,0.00011498,2]
[355513404,1741219841859,-500.0,0.00011498,2]
[355513405,1741219841868,-480.10629351,0.00011498,2]
[355513406,1741219841878,-199.53820129,0.00011498,2]
[355513407,1741219841887,-500.0,0.00011499,2]
[355513408,1741219841897,-500.0,0.00011499,2]
[355513409,1741219841908,-500.0,0.00011499,2]
[355513410,1741219841918,-500.0,0.00011499,2]
[355513411,1741219841928,-500.0,0.00011499,2]
[355513412,1741219841938,-500.0,0.00011499,2]
[355513413,1741219841948,-500.0,0.00011499,2]
[355513414,1741219841958,-500.0,0.00011499,2]
[355513415,1741219841972,-328.61837978,0.00011499,2]
[355513416,1741219841982,-500.0,0.00011499,2]
[355513417,1741219841992,-500.0,0.00011499,2]
[355513418,1741219842002,-579.99583428,0.00011499,2]
[355513419,1741219842012,-500.0,0.00011499,2]
[355513420,1741219842022,-500.0,0.00011499,2]
[355513421,1741219842032,-500.0,0.00011499,2]
[355513422,1741219842042,-500.0,0.00011499,2]
[355513423,1741219842052,-552.74,0.00011499,2]
[355513424,1741219842062,-500.0,0.00011499,2]
[355513425,1741219842073,-500.0,0.00011499,2]
[355513426,1741219842083,-500.0,0.00011499,2]
[355513427,1741219842092,-500.0,0.00011499,2]
[355513428,1741219842102,-500.0,0.00011499,2]
[355513429,1741219842112,-500.0,0.00011499,2]
[355513430,1741219842122,-500.0,0.00011499,2]
[355513431,1741219842131,-500.0,0.00011499,2]
[355513432,1741219842141,-500.0,0.00011499,2]
[355513433,1741219842151,-500.0,0.00011499,2]
[355513434,1741219842160,-500.0,0.00011499,2]
[355513435,1741219842171,-500.0,0.00011499,2]
[355513436,1741219842180,-500.0,0.00011499,2]
[355513437,1741219842191,-500.0,0.00011499,2]
[355513438,1741219842201,-500.0,0.00011499,2]
[355513439,1741219842213,-534.21,0.00011499,2]
[355513440,1741219842224,-500.0,0.00011499,2]
[355513445,1741219842456,-500.0,0.00011499,2]
[355513446,1741219842469,-500.0,0.00011499,2]
[355513447,1741219842478,-500.0,0.00011499,2]
[355513448,1741219842488,-500.0,0.00011499,2]
[355513449,1741219842497,-3153.21,0.00011499,2]
[355513450,1741219842507,-579.06,0.00011499,2]
[355513451,1741219842516,-500.0,0.00011499,2]
[355513452,1741219842526,-391.2,0.00011499,2]
[355513453,1741219842535,-186.69,0.00011499,2]
[355513454,1741219842545,-283.48,0.00011499,2]
[355513455,1741219842554,-154.22,0.00011499,2]
[355513456,1741219842563,-537.86,0.00011499,2]
[355513458,1741219842573,-234.79,0.00011499,2]
[355513459,1741219842582,-519.2,0.00011499,2]
[355513460,1741219842591,-500.0,0.00011499,2]
[355513461,1741219842601,-576.36,0.00011499,2]
[355513462,1741219842611,-500.0,0.00011499,2]
[355513464,1741219842622,-500.0,0.00011499,2]
[355513466,1741219842631,-197.64,0.00011499,2]
[355513468,1741219842641,-500.0,0.00011499,2]
[355513469,1741219842651,-465.24,0.00011499,2]
[355513470,1741219842660,-500.0,0.00011499,2]
[355513471,1741219842670,-500.0,0.00011499,2]
[355513472,1741219842681,-374.17,0.00011499,2]
[355513473,1741219842690,-500.0,0.00011499,2]
[355513474,1741219842699,-500.0,0.00011499,2]
[355513475,1741219842709,-288.19,0.00011499,2]
[355513476,1741219842720,-324.73,0.00011499,2]
[355513477,1741219842729,-316.16,0.00011499,2]
[355513478,1741219842743,-500.0,0.00011499,2]
[355513479,1741219842752,-422.83,0.00011499,2]
[355513480,1741219842762,-387.86,0.00011499,2]
[355513481,1741219842772,-268.88,0.00011499,2]
[355513482,1741219842782,-500.0,0.00011499,2]
[355513483,1741219842791,-500.0,0.00011499,2]
[355513484,1741219842802,-500.0,0.00011499,2]
[355513485,1741219842811,-500.0,0.00011499,2]
[355513486,1741219842820,-500.0,0.00011499,2]
[355513487,1741219842830,-470.67,0.00011499,2]
[355513488,1741219842839,-500.0,0.00011499,2]
[355513489,1741219842849,-500.0,0.00011499,2]
[355513490,1741219842859,-500.0,0.00011499,2]
[355513491,1741219842868,-500.0,0.00011499,2]
[355513492,1741219842877,-500.0,0.00011499,2]
[355513493,1741219842887,-500.0,0.00011499,2]
[355513494,1741219842897,-500.0,0.00011499,2]
[355513495,1741219842907,-500.0,0.00011499,2]
[355513496,1741219842917,-500.0,0.00011499,2]
[355513497,1741219842927,-500.0,0.00011499,2]
[355513498,1741219842936,-500.0,0.00011499,2]
[355513499,1741219842946,-175.18893574,0.00011499,2]
[355513500,1741219842955,-500.0,0.00011499,2]
[355513501,1741219842966,-500.0,0.00011499,2]
[355513502,1741219842976,-508.72565618,0.00011499,2]
[355513503,1741219842986,-500.0,0.00011499,2]
[355513504,1741219842995,-500.0,0.00011499,2]
[355513505,1741219843004,-2521.63,0.00011499,2]
[355513506,1741219843015,-500.0,0.00011499,2]
[355513507,1741219843024,-500.0,0.00011499,2]
[355513508,1741219843033,-500.0,0.00011499,2]
[355513509,1741219843042,-500.0,0.00011499,2]
[355513510,1741219843052,-500.0,0.00011499,2]
[355513511,1741219843061,-500.0,0.00011499,2]
[355513512,1741219843070,-500.0,0.00011499,2]
[355513513,1741219843080,-500.0,0.00011499,2]
[355513514,1741219843091,-833.81,0.00011499,2]
[355513515,1741219843100,-500.0,0.00011499,2]
[355513516,1741219843111,-522.22,0.00011499,2]
[355513517,1741219843120,-500.0,0.00011499,2]
[355513518,1741219843130,-4251.47,0.00011499,2]
[355513519,1741219843139,-500.0,0.00011499,2]
[355513520,1741219843150,-510.39,0.00011499,2]
[355513521,1741219843159,-500.0,0.00011499,2]
[355513522,1741219843170,-500.0,0.00011499,2]
[355513523,1741219843179,-638.36,0.00011499,2]
[355513525,1741219843188,-500.0,0.00011499,2]
[355513527,1741219843198,-556.5,0.00011499,2]
[355513529,1741219843207,-500.0,0.00011499,2]
[355513530,1741219843219,-500.0,0.00011499,2]
[355513531,1741219843228,-500.0,0.00011499,2]
[355513532,1741219843238,-500.0,0.00011499,2]
[355513533,1741219843248,-756.35,0.00011499,2]
[355513534,1741219843259,-1719.13,0.00011499,2]
[355513535,1741219843269,-500.0,0.00011499,2]
[355513536,1741219843280,-500.0,0.00011499,2]
[355513537,1741219843290,-296.35,0.00011499,2]
[355513538,1741219843299,-500.0,0.00011499,2]
[355513539,1741219843309,-451.43,0.00011499,2]
[355513540,1741219843319,-1208.42,0.00011499,2]
[355513541,1741219843329,-500.0,0.00011499,2]
[355513542,1741219843339,-500.0,0.00011499,2]
[355513543,1741219843348,-346.62,0.00011499,2]
[355513544,1741219843358,-974.82,0.00011499,2]
[355513545,1741219843368,-1104.37,0.00011499,2]
[355513546,1741219843377,-603.56,0.00011499,2]
[355513547,1741219843387,-500.0,0.00011499,2]
[355513548,1741219843396,-7933.87,0.00011499,2]
[355513549,1741219843408,-590.9,0.00011499,2]
[355513550,1741219843418,-500.0,0.00011499,2]
[355513551,1741219843428,-580.63,0.00011499,2]
[355513552,1741219843443,-500.0,0.00011499,2]
[355513553,1741219843453,-500.0,0.00011499,2]
[355513554,1741219843463,-1729.0,0.00011499,2]
[355513555,1741219843474,-500.0,0.00011499,2]
[355513556,1741219843483,-500.0,0.00011499,2]
[355513557,1741219843493,-706.98,0.00011499,2]
[355513558,1741219843503,-500.0,0.00011499,2]
[355513559,1741219843512,-732.32,0.00011499,2]
[355513560,1741219843522,-500.0,0.00011499,2]
[355513561,1741219843533,-500.0,0.00011499,2]
[355513562,1741219843542,-500.0,0.00011499,2]
[355513563,1741219843553,-500.0,0.00011499,2]
[355513564,1741219843563,-306.24,0.00011499,2]
[355513565,1741219843573,-1268.6,0.00011499,2]
[355513566,1741219843583,-500.0,0.00011499,2]
[355513567,1741219843593,-277.12,0.00011499,2]
[355513568,1741219843602,-512.63,0.00011499,2]
[355513569,1741219843613,-500.0,0.00011499,2]
[355513570,1741219843623,-2082.26,0.00011499,2]
[355513571,1741219843633,-10461.65,0.00011499,2]
[355513572,1741219843643,-500.0,0.00011499,2]
[355513573,1741219843653,-164.36,0.00011499,2]
[355513574,1741219843665,-197.42,0.00011499,2]
[355513575,1741219843675,-329.54,0.00011499,2]
[355513576,1741219843685,-500.0,0.00011499,2]
[355513577,1741219843695,-500.0,0.00011499,2]
[355513578,1741219843706,-710.43,0.00011499,2]
[355513579,1741219843717,-1184.89,0.00011499,2]
[355513580,1741219843726,-500.0,0.00011499,2]
[355513581,1741219843735,-197.05,0.00011499,2]
[355513582,1741219843745,-500.0,0.00011499,2]
[355513583,1741219843754,-919.98,0.00011499,2]
[355513584,1741219843763,-500.0,0.00011499,2]
[355513585,1741219843773,-500.0,0.00011499,2]
[355513586,1741219843783,-500.0,0.00011499,2]
[355513587,1741219843792,-500.0,0.00011499,2]
[355513588,1741219843801,-446.03,0.00011499,2]
[355513589,1741219843811,-745.15,0.00011499,2]
[355513590,1741219843821,-540.33,0.00011499,2]
[355513591,1741219843830,-523.18,0.00011499,2]
[355513592,1741219843839,-2117.03,0.00011499,2]
[355513593,1741219843849,-500.0,0.00011499,2]
[355513594,1741219843859,-596.85,0.00011499,2]
[355513595,1741219843869,-593.88,0.00011499,2]
[355513596,1741219843879,-500.0,0.00011499,2]
[355513597,1741219843888,-1000.0,0.00011499,2]
[355513598,1741219843898,-500.0,0.00011499,2]
[355513599,1741219843907,-589.09,0.00011499,2]
[355513600,1741219843917,-500.0,0.00011499,2]
[355513601,1741219843928,-1940.38,0.00011499,2]
[355513602,1741219843937,-1162.35,0.00011499,2]
[355513603,1741219843946,-206.25,0.00011499,2]
[355513604,1741219843956,-500.0,0.00011499,2]
[355513605,1741219843965,-1432.77,0.00011499,2]
[355513606,1741219843975,-500.0,0.00011499,2]
[355513607,1741219843984,-500.0,0.00011499,2]
[355513608,1741219843993,-1307.59,0.00011499,2]
[355513609,1741219844003,-211.3,0.00011499,2]
[355513610,1741219844012,-179.49,0.00011499,2]
[355513611,1741219844022,-501.75,0.00011499,2]
[355513612,1741219844032,-860.63,0.00011499,2]
[355513613,1741219844041,-500.0,0.00011499,2]
[355513614,1741219844051,-950.94,0.00011499,2]
[355513615,1741219844062,-304.18,0.00011499,2]
[355513616,1741219844072,-659.66,0.00011499,2]
[355513617,1741219844082,-500.0,0.00011499,2]
[355513618,1741219844091,-500.0,0.00011499,2]
[355513619,1741219844100,-500.0,0.00011499,2]
[355513620,1741219844110,-307.07,0.00011499,2]
[355513621,1741219844120,-671.4,0.00011499,2]
[355513622,1741219844130,-211.79,0.00011499,2]
[355513623,1741219844139,-336.92,0.00011499,2]
[355513624,1741219844148,-1438.68,0.00011499,2]
[355513625,1741219844157,-500.0,0.00011499,2]
[355513626,1741219844166,-300.0,0.00011499,2]
[355513627,1741219844176,-324.74729241,0.00011499,3]
[355513628,1741219844185,-1608.0,0.00011499,2]
[355513629,1741219844194,-1010615.50628739,0.00011499,2]
[355513630,1741219844204,-1000.0,0.000115,3]
[355513631,1741219844214,-408333.26569959,0.000115,2]
[355513632,1741219844746,-642.08912242,0.000115,2]
[355513634,1741219845756,-2890.33831613,0.000115,2]
[355513635,1741219845811,-1007.3814,0.000115,2]
[355513640,1741219906920,80.81868931,0.0001,2]
[355513641,1741219906942,5814.16131069,0.0001,2]
[355513659,1741220660359,281.7,8.651e-05,2]
[355513662,1741220901647,-150.0,0.00010684,7]
[355513663,1741220901670,-400.0,0.000114,4]
[355513664,1741220901709,-900.0,0.000115,4]
[355513691,1741221031784,-187.33,0.00010551,2]
[355513692,1741221031794,-150.0,0.0001057,2]
[355513693,1741221031804,-250.0,0.00010588,2]
[355513694,1741221031814,-595.67,0.00010635,2]
[355513695,1741221031825,-404.33,0.00010635,2]
[355513696,1741221031835,-281.7,0.00010915,2]
[355513697,1741221031845,-164.1,0.00011069,2]
[355513698,1741221031854,-149.87,0.000112,2]
[355513709,1741221037608,-850.13,0.000112,2]
[355513710,1741221037617,-28.922323,0.0001139,2]
[355513711,1741221037887,-1310.893637,0.0001139,2]
[355513712,1741221037897,-492.6756,0.0001139,2]
[355513713,1741221037906,-360.6402,0.0001139,2]
[355513714,1741221037916,-567.75188377,0.00011399,2]
[355513715,1741221037926,-171.07744391,0.00011399,2]
[355513716,1741221037935,-150.0,0.00011399,2]
[355513718,1741221037944,-1114.3415066,0.000114,2]
[355513719,1741221039768,-691.13045541,0.000114,2]
[355513720,1741221039851,-1597.99710519,0.000114,2]
[355513721,1741221040018,-266.6244499,0.000114,2]
[355513754,1741221042740,-6128.65634626,0.000114,2]